[Event "*** SCC Grand Prix: Titled Tuesday Blitz"]
[Site "Chess.com"]
[Date "2020.07.21"]
[Round "7"]
[White "NotFischer"]
[Black "Joseacorrea"]
[Result "1/2-1/2"]
[WhiteElo "2245"]
[BlackElo "1986"]
[TimeControl "180+1"]
[EndTime "11:16:48 PDT"]
[Termination "Game drawn by agreement"]

1. e4 {[%clk 0:03:00.9]} 1... c5 {[%clk 0:02:59.6]} 2. Nf3 {[%clk 0:03:00.6]}
2... g6 {[%clk 0:02:59.4]} 3. d4 {[%clk 0:03:00.4]} 3... cxd4 {[%clk 0:03:00.3]}
4. Nxd4 {[%clk 0:03:01]} 4... Bg7 {[%clk 0:03:00.5]} 5. Nc3 {[%clk 0:03:01.5]}
5... Nc6 {[%clk 0:03:00.8]} 6. Be3 {[%clk 0:03:01.2]} 6... Nf6 {[%clk
0:03:00.6]} 7. Be2 {[%clk 0:03:01.5]} 7... O-O {[%clk 0:03:00.4]} 8. O-O {[%clk
0:03:01.5]} 8... d5 {[%clk 0:03:00.5]} 9. exd5 {[%clk 0:03:01.7]} 9... Nxd5
{[%clk 0:03:01]} 10. Nxd5 {[%clk 0:03:01.9]} 10... Qxd5 {[%clk 0:02:59.8]} 11.
Bf3 {[%clk 0:03:01.8]} 11... Qd7 {[%clk 0:02:59.7]} 12. Nxc6 {[%clk 0:03:01.8]}
12... bxc6 {[%clk 0:02:59.4]} 13. c3 {[%clk 0:03:01.7]} 13... Qe6 {[%clk
0:02:52.2]} 14. Bd4 {[%clk 0:02:50.4]} 14... Rd8 {[%clk 0:02:48]} 15. Re1 {[%clk
0:02:48.7]} 15... Qc4 {[%clk 0:02:29.7]} 16. b3 {[%clk 0:01:45.3]} 16... Qb5
{[%clk 0:02:14.1]} 17. Rxe7 {[%clk 0:01:21.3]} 17... Be6 {[%clk 0:01:53.9]} 18.
Qc1 {[%clk 0:00:47.4]} 18... Bxd4 {[%clk 0:01:25.9]} 19. cxd4 {[%clk 0:00:45.8]}
19... Rxd4 {[%clk 0:01:17]} 20. Qxc6 {[%clk 0:00:42.2]} 20... Qxc6 {[%clk
0:01:08.3]} 21. Bxc6 {[%clk 0:00:43.1]} 21... Rc8 {[%clk 0:01:08.4]} 22. Bf3
{[%clk 0:00:26]} 22... a5 {[%clk 0:00:59.9]} 23. Ra7 {[%clk 0:00:23.2]} 23...
Rc2 {[%clk 0:00:48.4]} 24. Rxa5 {[%clk 0:00:21.9]} 24... Rdd2 {[%clk 0:00:48.3]}
25. Rf1 {[%clk 0:00:22]} 25... Rxa2 {[%clk 0:00:47.5]} 26. Rxa2 {[%clk
0:00:21.3]} 26... Rxa2 {[%clk 0:00:48.4]} 27. Bd1 {[%clk 0:00:09.6]} 27... Rb2
{[%clk 0:00:45.9]} 28. f4 {[%clk 0:00:08.9]} 28... Bxb3 {[%clk 0:00:42.3]} 29.
Bxb3 {[%clk 0:00:08.9]} 29... Rxb3 {[%clk 0:00:43.2]} 30. g3 {[%clk 0:00:08.7]}
30... Kg7 {[%clk 0:00:42.9]} 31. Rf2 {[%clk 0:00:08.7]} 1/2-1/2

[Event "*** SCC Grand Prix: Titled Tuesday Blitz"]
[Site "Chess.com"]
[Date "2020.07.21"]
[Round "7"]
[White "Iskusnyh"]
[Black "Pavel_Mir"]
[Result "1-0"]
[WhiteElo "2489"]
[BlackElo "2349"]
[TimeControl "180+1"]
[EndTime "11:16:50 PDT"]
[Termination "Iskusnyh won by resignation"]

1. d4 {[%clk 0:03:00.9]} 1... Nf6 {[%clk 0:02:59.4]} 2. c4 {[%clk 0:03:00.8]}
2... c6 {[%clk 0:02:57.7]} 3. Nf3 {[%clk 0:03:00]} 3... d5 {[%clk 0:02:58.1]} 4.
e3 {[%clk 0:02:59.8]} 4... g6 {[%clk 0:02:57.5]} 5. Nc3 {[%clk 0:02:57.9]} 5...
Bg7 {[%clk 0:02:57.2]} 6. Be2 {[%clk 0:02:58.5]} 6... O-O {[%clk 0:02:57.4]} 7.
O-O {[%clk 0:02:59]} 7... Bf5 {[%clk 0:02:56.1]} 8. Bd2 {[%clk 0:02:50.7]} 8...
Ne4 {[%clk 0:02:48.4]} 9. Rc1 {[%clk 0:02:33]} 9... Nxd2 {[%clk 0:02:29.6]} 10.
Qxd2 {[%clk 0:02:32.2]} 10... dxc4 {[%clk 0:02:29.4]} 11. Bxc4 {[%clk
0:02:31.4]} 11... e5 {[%clk 0:02:24.8]} 12. Rfd1 {[%clk 0:02:23.2]} 12... e4
{[%clk 0:02:07.4]} 13. Ne1 {[%clk 0:02:16.5]} 13... Nd7 {[%clk 0:02:04.4]} 14.
Nc2 {[%clk 0:01:57.8]} 14... h5 {[%clk 0:01:59.6]} 15. b4 {[%clk 0:01:44.8]}
15... Qg5 {[%clk 0:01:54.8]} 16. Na1 {[%clk 0:01:32.6]} 16... h4 {[%clk
0:01:46.9]} 17. Bf1 {[%clk 0:01:26.9]} 17... Rad8 {[%clk 0:01:39.9]} 18. Nb3
{[%clk 0:01:25.9]} 18... Ne5 {[%clk 0:01:38.7]} 19. Qc2 {[%clk 0:01:16.5]} 19...
h3 {[%clk 0:00:44.7]} 20. dxe5 {[%clk 0:01:10.4]} 20... hxg2 {[%clk 0:00:44.8]}
21. Bxg2 {[%clk 0:00:59.8]} 21... Bxe5 {[%clk 0:00:29.7]} 22. Nxe4 {[%clk
0:00:48.5]} 22... Qh4 {[%clk 0:00:22.8]} 23. f4 {[%clk 0:00:47.8]} 23... Bc7
{[%clk 0:00:12.9]} 24. Nd4 {[%clk 0:00:45.5]} 24... Bg4 {[%clk 0:00:11]} 25. Re1
{[%clk 0:00:40.9]} 25... Rfe8 {[%clk 0:00:11.2]} 26. Qf2 {[%clk 0:00:39.2]}
26... Qh5 {[%clk 0:00:08.3]} 27. Nf6+ {[%clk 0:00:38.5]} 1-0

[Event "*** SCC Grand Prix: Titled Tuesday Blitz"]
[Site "Chess.com"]
[Date "2020.07.21"]
[Round "7"]
[White "pedro_nascimento85"]
[Black "m-garcett"]
[Result "0-1"]
[WhiteElo "1917"]
[BlackElo "2046"]
[TimeControl "180+1"]
[EndTime "11:16:51 PDT"]
[Termination "m-garcett won by resignation"]

1. d4 {[%clk 0:03:00.9]} 1... Nf6 {[%clk 0:02:54.7]} 2. c4 {[%clk 0:03:00.7]}
2... e5 {[%clk 0:02:54.2]} 3. dxe5 {[%clk 0:02:57.4]} 3... Ng4 {[%clk
0:02:54.1]} 4. e3 {[%clk 0:02:55.6]} 4... Nxe5 {[%clk 0:02:51.6]} 5. Nh3 {[%clk
0:02:54.9]} 5... Nbc6 {[%clk 0:02:49.6]} 6. Nf4 {[%clk 0:02:54.3]} 6... Bb4+
{[%clk 0:02:45]} 7. Bd2 {[%clk 0:02:53.5]} 7... Bxd2+ {[%clk 0:02:42.3]} 8. Qxd2
{[%clk 0:02:50.6]} 8... d6 {[%clk 0:02:43.2]} 9. Nc3 {[%clk 0:02:50.1]} 9... O-O
{[%clk 0:02:38.5]} 10. Be2 {[%clk 0:02:49.7]} 10... Be6 {[%clk 0:02:30.6]} 11.
b3 {[%clk 0:02:42.2]} 11... a5 {[%clk 0:02:22.3]} 12. O-O {[%clk 0:02:40.2]}
12... Qh4 {[%clk 0:02:05.8]} 13. Nb5 {[%clk 0:02:29.4]} 13... Rac8 {[%clk
0:01:54.8]} 14. Nxe6 {[%clk 0:02:22.1]} 14... fxe6 {[%clk 0:01:54.7]} 15. Nd4
{[%clk 0:02:22.5]} 15... Rf6 {[%clk 0:01:35]} 16. Nf3 {[%clk 0:02:11.4]} 16...
Qh6 {[%clk 0:01:26.7]} 17. Nxe5 {[%clk 0:01:56.9]} 17... Nxe5 {[%clk 0:01:26.3]}
18. Qxa5 {[%clk 0:01:53.5]} 18... Rf5 {[%clk 0:01:08.6]} 19. Qb4 {[%clk
0:01:43.7]} 19... b6 {[%clk 0:01:07.2]} 20. f4 {[%clk 0:01:15.6]} 20... Ng6
{[%clk 0:00:57.3]} 21. Bg4 {[%clk 0:00:57.2]} 21... Rf6 {[%clk 0:00:57.3]} 22.
Qb5 {[%clk 0:00:49.2]} 22... Rcf8 {[%clk 0:00:43.6]} 23. Qd7 {[%clk 0:00:45.1]}
23... Nh4 {[%clk 0:00:43.4]} 24. Qxc7 {[%clk 0:00:35.1]} 24... e5 {[%clk
0:00:43]} 25. Qxb6 {[%clk 0:00:20.4]} 25... exf4 {[%clk 0:00:43]} 26. exf4
{[%clk 0:00:19.4]} 26... Rxf4 {[%clk 0:00:42.6]} 27. Rfe1 {[%clk 0:00:10.6]}
27... Rxg4 {[%clk 0:00:39]} 28. Qd4 {[%clk 0:00:08.4]} 28... Rxd4 {[%clk
0:00:37.3]} 0-1

[Event "*** SCC Grand Prix: Titled Tuesday Blitz"]
[Site "Chess.com"]
[Date "2020.07.21"]
[Round "7"]
[White "XDPS"]
[Black "MFguimaraes"]
[Result "1-0"]
[WhiteElo "2711"]
[BlackElo "2410"]
[TimeControl "180+1"]
[EndTime "11:16:52 PDT"]
[Termination "XDPS won by resignation"]

1. e4 {[%clk 0:03:00.9]} 1... e5 {[%clk 0:02:59.8]} 2. Nf3 {[%clk 0:02:56.6]}
2... Nc6 {[%clk 0:02:59.6]} 3. Bb5 {[%clk 0:02:56.8]} 3... Nf6 {[%clk
0:02:59.4]} 4. Nc3 {[%clk 0:02:46.9]} 4... Bb4 {[%clk 0:02:56.3]} 5. Nd5 {[%clk
0:02:38.1]} 5... Bc5 {[%clk 0:02:29.1]} 6. O-O {[%clk 0:02:33.9]} 6... O-O
{[%clk 0:02:22]} 7. d3 {[%clk 0:02:33.1]} 7... Nxd5 {[%clk 0:02:21.4]} 8. exd5
{[%clk 0:02:32]} 8... Nd4 {[%clk 0:02:21.8]} 9. Nxd4 {[%clk 0:02:30.1]} 9...
Bxd4 {[%clk 0:02:20.6]} 10. c3 {[%clk 0:02:29.9]} 10... Bb6 {[%clk 0:02:20.8]}
11. Kh1 {[%clk 0:02:30.2]} 11... c6 {[%clk 0:02:20.9]} 12. dxc6 {[%clk
0:02:28.8]} 12... bxc6 {[%clk 0:02:20.7]} 13. Ba4 {[%clk 0:02:29.2]} 13... Qh4
{[%clk 0:02:18.4]} 14. f4 {[%clk 0:02:26.1]} 14... e4 {[%clk 0:01:53.2]} 15.
dxe4 {[%clk 0:02:20.7]} 15... Ba6 {[%clk 0:01:53.4]} 16. Rf3 {[%clk 0:02:11]}
16... Rae8 {[%clk 0:01:53.1]} 17. Bc2 {[%clk 0:02:05]} 17... d5 {[%clk
0:01:51.5]} 18. e5 {[%clk 0:02:03]} 18... Qd8 {[%clk 0:01:39.3]} 19. Rh3 {[%clk
0:01:27.9]} 19... g6 {[%clk 0:01:39]} 20. Be3 {[%clk 0:01:18.7]} 20... f6 {[%clk
0:01:34.6]} 21. Bxb6 {[%clk 0:00:41.3]} 21... axb6 {[%clk 0:01:34.2]} 22. Rxh7
{[%clk 0:00:22.9]} 22... f5 {[%clk 0:01:34]} 23. Rh3 {[%clk 0:00:20.2]} 23...
Rf7 {[%clk 0:01:33.8]} 24. Qd2 {[%clk 0:00:19.8]} 24... Rh7 {[%clk 0:01:30.2]}
25. Rxh7 {[%clk 0:00:17.3]} 25... Kxh7 {[%clk 0:01:30.8]} 26. g4 {[%clk
0:00:17.8]} 26... Bc8 {[%clk 0:01:28.9]} 27. gxf5 {[%clk 0:00:17.8]} 27... Bxf5
{[%clk 0:01:21.1]} 28. Bxf5 {[%clk 0:00:17.9]} 28... gxf5 {[%clk 0:01:22]} 29.
Rg1 {[%clk 0:00:18.5]} 29... Rg8 {[%clk 0:01:16.1]} 30. Qd3 {[%clk 0:00:18.5]}
30... Rxg1+ {[%clk 0:01:14.6]} 31. Kxg1 {[%clk 0:00:19.4]} 31... Qg8+ {[%clk
0:01:14.9]} 32. Kf2 {[%clk 0:00:19]} 32... Qg4 {[%clk 0:01:13.3]} 33. Qf3 {[%clk
0:00:19.5]} 33... Qh4+ {[%clk 0:01:10.3]} 34. Kg2 {[%clk 0:00:19.9]} 34... Qe1
{[%clk 0:01:07.3]} 35. Qh3+ {[%clk 0:00:20.2]} 35... Kg6 {[%clk 0:01:05.3]} 36.
Qg3+ {[%clk 0:00:21.1]} 36... Qxg3+ {[%clk 0:01:04]} 37. hxg3 {[%clk 0:00:22]}
37... c5 {[%clk 0:01:04.8]} 38. Kf3 {[%clk 0:00:22.1]} 38... Kh5 {[%clk
0:01:05.7]} 39. a4 {[%clk 0:00:15.3]} 39... c4 {[%clk 0:01:05.6]} 40. Ke3 {[%clk
0:00:14.9]} 40... Kg6 {[%clk 0:01:05.2]} 41. Kd4 {[%clk 0:00:14.8]} 1-0

[Event "*** SCC Grand Prix: Titled Tuesday Blitz"]
[Site "Chess.com"]
[Date "2020.07.21"]
[Round "7"]
[White "MusicCityMaster"]
[Black "GMJustin"]
[Result "1-0"]
[WhiteElo "2450"]
[BlackElo "2305"]
[TimeControl "180+1"]
[EndTime "11:16:53 PDT"]
[Termination "MusicCityMaster won on time"]

1. d4 {[%clk 0:03:00.9]} 1... d5 {[%clk 0:02:56.7]} 2. c4 {[%clk 0:03:00.5]}
2... dxc4 {[%clk 0:02:56.4]} 3. Nf3 {[%clk 0:03:00.2]} 3... a6 {[%clk
0:02:55.9]} 4. e3 {[%clk 0:02:57.8]} 4... Bg4 {[%clk 0:02:50.3]} 5. Bxc4 {[%clk
0:02:57.2]} 5... e6 {[%clk 0:02:50]} 6. Qe2 {[%clk 0:02:53.5]} 6... c5 {[%clk
0:02:29.1]} 7. dxc5 {[%clk 0:02:52]} 7... Bxc5 {[%clk 0:02:26.7]} 8. O-O {[%clk
0:02:52.2]} 8... Nc6 {[%clk 0:02:13.5]} 9. Nbd2 {[%clk 0:02:48.5]} 9... Nf6
{[%clk 0:02:04]} 10. Rd1 {[%clk 0:02:47.1]} 10... Qe7 {[%clk 0:01:44.8]} 11. h3
{[%clk 0:02:33.8]} 11... Bh5 {[%clk 0:01:42]} 12. b3 {[%clk 0:02:24]} 12... Ne5
{[%clk 0:01:12.3]} 13. g4 {[%clk 0:02:23.1]} 13... Nxc4 {[%clk 0:01:03.2]} 14.
Nxc4 {[%clk 0:02:22.6]} 14... Bg6 {[%clk 0:01:01.5]} 15. Bb2 {[%clk 0:02:22.8]}
15... O-O {[%clk 0:00:59.6]} 16. Nfe5 {[%clk 0:02:17.4]} 16... Rfd8 {[%clk
0:00:50.7]} 17. Nxg6 {[%clk 0:02:07.4]} 17... hxg6 {[%clk 0:00:49.7]} 18. Qf3
{[%clk 0:02:03.8]} 18... Nd5 {[%clk 0:00:26.7]} 19. Rac1 {[%clk 0:01:53.8]}
19... f6 {[%clk 0:00:12.7]} 20. Qe4 {[%clk 0:01:42]} 20... g5 {[%clk 0:00:09.2]}
21. Na5 {[%clk 0:01:29.7]} 21... Bb6 {[%clk 0:00:06.2]} 22. Nc4 {[%clk
0:01:16.5]} 22... Bc7 {[%clk 0:00:04.9]} 23. Kg2 {[%clk 0:01:10]} 23... Rd7
{[%clk 0:00:04.8]} 24. h4 {[%clk 0:01:03.1]} 24... gxh4 {[%clk 0:00:03.9]} 25.
Rh1 {[%clk 0:01:03]} 25... g5 {[%clk 0:00:03.4]} 26. Nd2 {[%clk 0:00:49.8]}
26... Re8 {[%clk 0:00:03.1]} 27. Nf3 {[%clk 0:00:50]} 27... Qh7 {[%clk
0:00:02.9]} 28. Qc4 {[%clk 0:00:44.6]} 28... b5 {[%clk 0:00:02.2]} 29. Qc6
{[%clk 0:00:41.6]} 1-0

[Event "*** SCC Grand Prix: Titled Tuesday Blitz"]
[Site "Chess.com"]
[Date "2020.07.21"]
[Round "7"]
[White "VladimirBugayev"]
[Black "pfalcon1949"]
[Result "0-1"]
[WhiteElo "2144"]
[BlackElo "2011"]
[TimeControl "180+1"]
[EndTime "11:16:53 PDT"]
[Termination "pfalcon1949 won by resignation"]

1. e4 {[%clk 0:03:00.9]} 1... e6 {[%clk 0:02:59.8]} 2. d4 {[%clk 0:03:00.5]}
2... d5 {[%clk 0:02:59.9]} 3. Nd2 {[%clk 0:03:01]} 3... c5 {[%clk 0:02:58.6]} 4.
exd5 {[%clk 0:03:00.2]} 4... exd5 {[%clk 0:02:58.2]} 5. Ngf3 {[%clk 0:03:00.8]}
5... c4 {[%clk 0:02:57.4]} 6. b3 {[%clk 0:02:53.3]} 6... cxb3 {[%clk 0:02:55.7]}
7. axb3 {[%clk 0:02:53]} 7... a6 {[%clk 0:02:55.6]} 8. c3 {[%clk 0:02:53.1]}
8... Nc6 {[%clk 0:02:54.5]} 9. Bd3 {[%clk 0:02:53]} 9... Bd6 {[%clk 0:02:54.6]}
10. O-O {[%clk 0:02:52.7]} 10... Nge7 {[%clk 0:02:55.2]} 11. Re1 {[%clk
0:02:49.8]} 11... O-O {[%clk 0:02:54.7]} 12. Nf1 {[%clk 0:02:50.3]} 12... Bf5
{[%clk 0:02:54.1]} 13. Ng3 {[%clk 0:02:49.5]} 13... Bxd3 {[%clk 0:02:53.4]} 14.
Qxd3 {[%clk 0:02:49.6]} 14... Qc7 {[%clk 0:02:51.1]} 15. Ba3 {[%clk 0:02:33.3]}
15... Rfe8 {[%clk 0:02:45.7]} 16. Bxd6 {[%clk 0:02:18.5]} 16... Qxd6 {[%clk
0:02:44.5]} 17. Ne5 {[%clk 0:02:18.4]} 17... Nxe5 {[%clk 0:02:37.2]} 18. dxe5
{[%clk 0:02:18]} 18... Qb6 {[%clk 0:02:31.8]} 19. b4 {[%clk 0:02:05.8]} 19...
Rad8 {[%clk 0:02:29.6]} 20. Ra5 {[%clk 0:01:46.9]} 20... d4 {[%clk 0:02:21.1]}
21. e6 {[%clk 0:01:38]} 21... fxe6 {[%clk 0:02:08.6]} 22. h4 {[%clk 0:01:11.7]}
22... dxc3 {[%clk 0:02:01.4]} 23. Qxc3 {[%clk 0:01:10.1]} 23... Nd5 {[%clk
0:01:57.5]} 24. Qe5 {[%clk 0:01:06.1]} 24... Qxb4 {[%clk 0:01:41.3]} 25. Nh5
{[%clk 0:01:01.1]} 25... Re7 {[%clk 0:01:30.2]} 26. Rxd5 {[%clk 0:00:35.7]}
26... Rxd5 {[%clk 0:01:22.8]} 27. Qb8+ {[%clk 0:00:35.9]} 27... Kf7 {[%clk
0:01:19.5]} 28. Re5 {[%clk 0:00:35.3]} 28... Rd1+ {[%clk 0:00:56.8]} 29. Kh2
{[%clk 0:00:30.6]} 29... Qd6 {[%clk 0:00:57.3]} 30. Qxd6 {[%clk 0:00:21.3]}
30... Rxd6 {[%clk 0:00:57]} 31. Rg5 {[%clk 0:00:16.2]} 31... g6 {[%clk
0:00:56.1]} 32. Nf4 {[%clk 0:00:16]} 32... b5 {[%clk 0:00:55.6]} 33. h5 {[%clk
0:00:15.8]} 33... e5 {[%clk 0:00:53]} 34. hxg6+ {[%clk 0:00:15.1]} 34... hxg6
{[%clk 0:00:52.7]} 35. Nh3 {[%clk 0:00:13.3]} 35... Kf6 {[%clk 0:00:52.6]} 36.
Rg3 {[%clk 0:00:14]} 36... e4 {[%clk 0:00:52.4]} 37. Rg4 {[%clk 0:00:13.3]}
37... Rde6 {[%clk 0:00:52.3]} 38. Rf4+ {[%clk 0:00:13.6]} 38... Kg7 {[%clk
0:00:52]} 39. Ng5 {[%clk 0:00:12.8]} 39... Re5 {[%clk 0:00:52.5]} 0-1

[Event "*** SCC Grand Prix: Titled Tuesday Blitz"]
[Site "Chess.com"]
[Date "2020.07.21"]
[Round "7"]
[White "Carnivoras"]
[Black "crescentmoon2411"]
[Result "1-0"]
[WhiteElo "2635"]
[BlackElo "2799"]
[TimeControl "180+1"]
[EndTime "11:16:54 PDT"]
[Termination "Carnivoras won by resignation"]

1. d4 {[%clk 0:03:00.9]} 1... Nf6 {[%clk 0:02:59]} 2. c4 {[%clk 0:03:00.9]} 2...
g6 {[%clk 0:02:58.3]} 3. Nc3 {[%clk 0:03:01.5]} 3... Bg7 {[%clk 0:02:57.8]} 4.
e4 {[%clk 0:03:01.4]} 4... d6 {[%clk 0:02:58.2]} 5. Nf3 {[%clk 0:03:01.1]} 5...
O-O {[%clk 0:02:57.8]} 6. Be2 {[%clk 0:03:01.7]} 6... e5 {[%clk 0:02:57.7]} 7.
O-O {[%clk 0:03:02.4]} 7... Nbd7 {[%clk 0:02:55]} 8. Qc2 {[%clk 0:02:58.3]} 8...
c6 {[%clk 0:02:53.7]} 9. Rd1 {[%clk 0:02:55.3]} 9... Qc7 {[%clk 0:02:52.8]} 10.
h3 {[%clk 0:02:49.7]} 10... Re8 {[%clk 0:02:49.1]} 11. Be3 {[%clk 0:02:49]}
11... exd4 {[%clk 0:02:46.7]} 12. Nxd4 {[%clk 0:02:48.9]} 12... Nc5 {[%clk
0:02:46.2]} 13. Bf3 {[%clk 0:02:47.6]} 13... Nfd7 {[%clk 0:02:41]} 14. Rac1
{[%clk 0:02:44.5]} 14... b6 {[%clk 0:02:31.1]} 15. Nxc6 {[%clk 0:02:25.7]} 15...
Qxc6 {[%clk 0:02:30.5]} 16. e5 {[%clk 0:02:26]} 16... Qxf3 {[%clk 0:02:30.7]}
17. gxf3 {[%clk 0:02:25.9]} 17... Nxe5 {[%clk 0:02:31.1]} 18. Qe2 {[%clk
0:02:07]} 18... Bf5 {[%clk 0:02:28.8]} 19. Rxd6 {[%clk 0:01:56.6]} 19... Ned3
{[%clk 0:02:24.2]} 20. Rd1 {[%clk 0:01:52.9]} 20... Nf4 {[%clk 0:01:57.3]} 21.
Qd2 {[%clk 0:01:41.4]} 21... Nxh3+ {[%clk 0:01:46.7]} 22. Kg2 {[%clk 0:01:40.5]}
22... Rac8 {[%clk 0:00:58.2]} 23. Rh1 {[%clk 0:01:34.4]} 23... Ne6 {[%clk
0:00:50.3]} 24. Rxh3 {[%clk 0:01:28.1]} 24... Bxh3+ {[%clk 0:00:49.8]} 25. Kxh3
{[%clk 0:01:28.5]} 25... Rxc4 {[%clk 0:00:50]} 26. Ne4 {[%clk 0:01:19.6]} 26...
Rec8 {[%clk 0:00:40.1]} 27. b3 {[%clk 0:01:05.1]} 27... Rc2 {[%clk 0:00:35.7]}
28. Qd5 {[%clk 0:01:04.8]} 28... Re8 {[%clk 0:00:27.4]} 29. Ng5 {[%clk
0:01:00.5]} 29... Nxg5+ {[%clk 0:00:24.5]} 30. Qxg5 {[%clk 0:00:57.8]} 30... h6
{[%clk 0:00:21.5]} 31. Qb5 {[%clk 0:00:51.1]} 31... Re5 {[%clk 0:00:20.7]} 32.
Rd8+ {[%clk 0:00:47.5]} 32... Kh7 {[%clk 0:00:20.6]} 33. Qd7 {[%clk 0:00:48.1]}
33... Rf5 {[%clk 0:00:14.5]} 34. Qe8 {[%clk 0:00:43.8]} 34... g5 {[%clk
0:00:12.3]} 35. Qe4 {[%clk 0:00:43]} 1-0

[Event "*** SCC Grand Prix: Titled Tuesday Blitz"]
[Site "Chess.com"]
[Date "2020.07.21"]
[Round "7"]
[White "Roman_Ovetchkin"]
[Black "2346PL"]
[Result "1-0"]
[WhiteElo "2593"]
[BlackElo "2395"]
[TimeControl "180+1"]
[EndTime "11:17:00 PDT"]
[Termination "Roman_Ovetchkin won by checkmate"]

1. d4 {[%clk 0:03:00.9]} 1... f5 {[%clk 0:02:59.7]} 2. c4 {[%clk 0:02:57.3]}
2... Nf6 {[%clk 0:02:59.8]} 3. Nc3 {[%clk 0:02:56.7]} 3... g6 {[%clk 0:03:00.2]}
4. h4 {[%clk 0:02:55.7]} 4... Bg7 {[%clk 0:02:57.1]} 5. h5 {[%clk 0:02:55.8]}
5... Nxh5 {[%clk 0:02:55.8]} 6. e4 {[%clk 0:02:55.7]} 6... Nf6 {[%clk
0:02:32.6]} 7. e5 {[%clk 0:02:53.4]} 7... Ng8 {[%clk 0:02:32.4]} 8. f4 {[%clk
0:02:51.3]} 8... d6 {[%clk 0:02:26.2]} 9. Nf3 {[%clk 0:02:51]} 9... e6 {[%clk
0:02:25.1]} 10. Be3 {[%clk 0:02:45.7]} 10... c6 {[%clk 0:02:21.1]} 11. Qc2
{[%clk 0:02:20.1]} 11... d5 {[%clk 0:02:20.1]} 12. g4 {[%clk 0:02:07.8]} 12...
Ne7 {[%clk 0:02:14.3]} 13. gxf5 {[%clk 0:01:51.9]} 13... Nxf5 {[%clk 0:02:13.9]}
14. Bf2 {[%clk 0:01:52.4]} 14... Qe7 {[%clk 0:01:56.9]} 15. O-O-O {[%clk
0:01:51.2]} 15... Na6 {[%clk 0:01:55.3]} 16. Kb1 {[%clk 0:01:47.8]} 16... Nb4
{[%clk 0:01:52]} 17. Qd2 {[%clk 0:01:39.5]} 17... dxc4 {[%clk 0:01:48.6]} 18.
Bxc4 {[%clk 0:01:38.9]} 18... b5 {[%clk 0:01:45]} 19. Bb3 {[%clk 0:01:32.6]}
19... a5 {[%clk 0:01:44.6]} 20. Ne4 {[%clk 0:01:29.4]} 20... a4 {[%clk
0:01:39.1]} 21. Bc2 {[%clk 0:01:28.9]} 21... a3 {[%clk 0:01:33.6]} 22. b3 {[%clk
0:01:27.9]} 22... Nd5 {[%clk 0:01:29.8]} 23. Nc5 {[%clk 0:01:23.7]} 23... O-O
{[%clk 0:01:26.4]} 24. Be4 {[%clk 0:01:18.6]} 24... Ra7 {[%clk 0:01:20.8]} 25.
Rh2 {[%clk 0:01:16.4]} 25... b4 {[%clk 0:01:03.9]} 26. Rdh1 {[%clk 0:01:09]}
26... Nc3+ {[%clk 0:01:02.7]} 27. Ka1 {[%clk 0:01:08.5]} 27... h6 {[%clk
0:00:56.8]} 28. Rg2 {[%clk 0:01:02.4]} 28... Qf7 {[%clk 0:00:51.9]} 29. Rhg1
{[%clk 0:01:00.2]} 29... Kh7 {[%clk 0:00:51]} 30. Bc2 {[%clk 0:00:58.6]} 30...
Ba6 {[%clk 0:00:45]} 31. Nh4 {[%clk 0:00:57.8]} 31... Nxh4 {[%clk 0:00:18.2]}
32. Bxh4 {[%clk 0:00:57.1]} 32... Qxf4 {[%clk 0:00:18.6]} 33. Qxf4 {[%clk
0:00:56.8]} 33... Rxf4 {[%clk 0:00:18.3]} 34. Rxg6 {[%clk 0:00:56.4]} 34... Kh8
{[%clk 0:00:18.8]} 35. Nxe6 {[%clk 0:00:54.2]} 35... Rxh4 {[%clk 0:00:14.6]} 36.
Nxg7 {[%clk 0:00:54.4]} 36... Rf4 {[%clk 0:00:11.8]} 37. Ne8 {[%clk 0:00:52.9]}
37... Rf1+ {[%clk 0:00:11.7]} 38. Rxf1 {[%clk 0:00:52]} 38... Bxf1 {[%clk
0:00:12.6]} 39. Nf6 {[%clk 0:00:52.2]} 39... Be2 {[%clk 0:00:07.6]} 40. Rg8#
{[%clk 0:00:51.4]} 1-0

[Event "*** SCC Grand Prix: Titled Tuesday Blitz"]
[Site "Chess.com"]
[Date "2020.07.21"]
[Round "7"]
[White "theblitzchamp"]
[Black "ChristianAlm"]
[Result "0-1"]
[WhiteElo "2663"]
[BlackElo "2539"]
[TimeControl "180+1"]
[EndTime "11:17:02 PDT"]
[Termination "ChristianAlm won by resignation"]

1. d4 {[%clk 0:03:00.9]} 1... Nf6 {[%clk 0:02:53.6]} 2. Bf4 {[%clk 0:03:00.9]}
2... c5 {[%clk 0:02:48.8]} 3. d5 {[%clk 0:03:00.8]} 3... d6 {[%clk 0:02:48.7]}
4. Nc3 {[%clk 0:02:58.6]} 4... g6 {[%clk 0:02:48.4]} 5. e4 {[%clk 0:02:57.2]}
5... Bg7 {[%clk 0:02:48.3]} 6. Qd2 {[%clk 0:02:53.6]} 6... O-O {[%clk 0:02:43]}
7. a4 {[%clk 0:02:53.5]} 7... Na6 {[%clk 0:02:39.3]} 8. f3 {[%clk 0:02:51.8]}
8... Nb4 {[%clk 0:02:38.8]} 9. Bc4 {[%clk 0:02:46.9]} 9... Nh5 {[%clk
0:02:34.4]} 10. Be3 {[%clk 0:02:42.2]} 10... e6 {[%clk 0:02:30.7]} 11. dxe6
{[%clk 0:02:13.9]} 11... Bxe6 {[%clk 0:02:31.6]} 12. Bxe6 {[%clk 0:01:59.1]}
12... fxe6 {[%clk 0:02:32.5]} 13. Nge2 {[%clk 0:01:58.9]} 13... Rc8 {[%clk
0:02:08.4]} 14. Rd1 {[%clk 0:01:57.2]} 14... d5 {[%clk 0:02:02.4]} 15. exd5
{[%clk 0:01:37.7]} 15... exd5 {[%clk 0:02:02.2]} 16. Nxd5 {[%clk 0:01:32.1]}
16... Nxd5 {[%clk 0:01:49.5]} 17. Qxd5+ {[%clk 0:01:32]} 17... Qxd5 {[%clk
0:01:50.4]} 18. Rxd5 {[%clk 0:01:32.4]} 18... Bxb2 {[%clk 0:01:49.6]} 19. c3
{[%clk 0:00:33.3]} 19... Rfe8 {[%clk 0:01:48.1]} 20. Kd2 {[%clk 0:00:32.1]}
20... Rcd8 {[%clk 0:01:38.7]} 21. Rxd8 {[%clk 0:00:20.4]} 21... Rxd8+ {[%clk
0:01:39.6]} 22. Kc2 {[%clk 0:00:21]} 22... Re8 {[%clk 0:01:39.5]} 23. Kd2 {[%clk
0:00:21.4]} 23... Rd8+ {[%clk 0:01:25.7]} 24. Kc2 {[%clk 0:00:21.7]} 24... Re8
{[%clk 0:01:16.1]} 25. Kxb2 {[%clk 0:00:18.8]} 25... Rxe3 {[%clk 0:01:15.4]} 26.
Nc1 {[%clk 0:00:19.7]} 26... Nf4 {[%clk 0:01:10.6]} 27. g3 {[%clk 0:00:19.8]}
27... Nd3+ {[%clk 0:01:07.1]} 28. Nxd3 {[%clk 0:00:19.6]} 28... Rxd3 {[%clk
0:01:08]} 29. f4 {[%clk 0:00:19.8]} 29... c4 {[%clk 0:01:01.8]} 30. Re1 {[%clk
0:00:20]} 30... Rd2+ {[%clk 0:01:01.5]} 31. Ka3 {[%clk 0:00:20.4]} 31... Rxh2
{[%clk 0:00:58.3]} 32. Kb4 {[%clk 0:00:19.4]} 32... Rg2 {[%clk 0:00:57.7]} 33.
Re3 {[%clk 0:00:19.7]} 33... Ra2 {[%clk 0:00:55.1]} 34. Re7 {[%clk 0:00:19.3]}
34... h5 {[%clk 0:00:48.6]} 35. Rc7 {[%clk 0:00:10.2]} 35... Rg2 {[%clk
0:00:46.4]} 36. Rxb7 {[%clk 0:00:09.6]} 36... Rb2+ {[%clk 0:00:45.4]} 0-1